[Event "9th Holuj-Radzikowska 2019"]
[Site "Wroclaw"]
[Date "2019.12.06"]
[Round "1.2"]
[White "Houska, Jovanka"]
[Black "Zawadzka, Jolanta"]
[Result "0-1"]
[ECO "D38"]
[WhiteElo "2412"]
[BlackElo "2400"]
[Annotator "RC"]
[PlyCount "78"]
[EventDate "2019.12.06"]
[EventType "team-tourn"]
[EventCountry "POL"]
[SourceTitle "playchess.com"]
[Source "ChessBase"]
[SourceQuality "1"]
[WhiteTeam "Team World"]
[BlackTeam "Team Poland"]
[TimeControl "40/5400+30:1800+30"]

1. d4 {[%emt 0:00:00]} d5 {[%emt 0:00:00]} 2. Nf3 {[%emt 0:00:00]} Nf6 {[%emt 0:00:00]} 3. c4 {[%emt 0:00:00]} e6 {[%emt 0:00:00]} 4. Nc3 {[%emt 0:00:04]} Bb4 {[%emt 0:00:08]} 5. Qa4+ {[%emt 0:00:58]} Nc6 {[%emt 0:00:07]} 6. Bd2 {[%emt 0:00:05]} dxc4 {[%emt 0:00:50]} 7. e3 {[%emt 0:00:08]} O-O {[%emt 0:00:22]} 8. Bxc4 {[%emt 0:01:07]} Bd6 {[%emt 0:00:46]} 9. a3 {[%emt 0:08:45]} a6 {[%emt 0:03:18]} 10. Qc2 {[%emt 0:03:23]} e5 {[%emt 0:03:46]} 11. d5 {[%emt 0:12:27]} Ne7 {[%emt 0:00:34]} 12. Ng5 {[%emt 0:02:02]} h6 {[%emt 0:06:18]} 13. Nge4 {[%emt 0:00:20]} Nxe4 {[%emt 0:00:46]} 14. Nxe4 {[%emt 0:00:05]} Bf5 {[%emt 0:06:58]} 15. O-O {[%emt 0:09:01]} Rc8 {[%emt 0:05:44]} 16. Bc3 {[%emt 0:04:12]} b5 {[%emt 0:08:33]} 17. Ba2 {[%emt 0:07:21]} c5 {[%emt 0:02:08]} 18. Rad1 {[%emt 0:05:40]} Qb6 {[%emt 0:04:08]} 19. Bb1 {[%emt 0:03:36]} a5 {[%emt 0:12:55]} 20. g4 {[%emt 0:04:09]} Bg6 {[%emt 0:05:51]} 21. f4 {[%emt 0:00:15]} exf4 {[%emt 0:01:12]} 22. exf4 {[%emt 0:00:12]} b4 {[%emt 0:04:09]} 23. Be5 {[%emt 0:09:58]} Bxe4 {[%emt 0:03:25]} 24. Qxe4 {[%emt 0:00:12]} f5 {[%emt 0:00:06]} 25. Qg2 {[%emt 0:04:42]} Qc7 {[%emt 0:06:26]} 26. Rfe1 {[%emt 0:05:41]} Rcd8 {[%emt 0:04:19]} 27. gxf5 {[%emt 0:10:24]} Nxf5 {[%emt 0:05:04]} 28. Qg6 {[%emt 0:01:11]} Qd7 {[%emt 0:03:54]} 29. Kh1 {[%emt 0:01:39]} Bb8 {[%emt 0:04:30]} 30. Bxf5 {[%emt 0:02:29]} Rxf5 {[%emt 0:00:44]} 31. Bxg7 {[%emt 0:00:12]} Qf7 {[%emt 0:00:43]} 32. Qxh6 {[%emt 0:01:41]} Rh5 {[%emt 0:00:19]} 33. Qf6 {[%emt 0:01:56]} Rdxd5 {[%emt 0:02:35]} 34. Rxd5 {[%emt 0:01:30]} Rxd5 {[%emt 0:03:10]} 35. Qc6 {[%emt 0:01:24]} Kxg7 {[%emt 0:00:49]} 36. Rg1+ {[%emt 0:00:10]} Kh7 {[%emt 0:00:37]} 37. Qc8 {[%emt 0:00:10]} Bxf4 {[%emt 0:00:14]} 38. Qh3+ {[%emt 0:00:51]} Rh5 {[%emt 0:01:04]} 39. Qd3+ {[%emt 0:00:56]} Qf5 {[%emt 0:00:14]} 0-1

[Event "9th Holuj-Radzikowska 2019"]
[Site "Wroclaw"]
[Date "2019.12.06"]
[Round "1.4"]
[White "Bulmaga, Irina"]
[Black "Majdan, Joanna"]
[Result "1-0"]
[ECO "B06"]
[WhiteElo "2434"]
[BlackElo "2336"]
[Annotator "RC"]
[PlyCount "53"]
[EventDate "2019.12.06"]
[EventType "team-tourn"]
[EventCountry "POL"]
[SourceTitle "playchess.com"]
[Source "ChessBase"]
[SourceQuality "1"]
[WhiteTeam "Team World"]
[BlackTeam "Team Poland"]
[TimeControl "40/5400+30:1800+30"]

1. e4 g6 2. d4 Bg7 3. Nc3 d6 4. f4 a6 5. Nf3 b5 6. Bd3 Nd7 7. e5 {[%emt 0:04:53]} c5 {[%emt 0:03:34]} 8. Be4 Rb8 9. Be3 cxd4 {[%emt 0:02:47]} 10. Bxd4 dxe5 11. fxe5 e6 12. Ba7 Qc7 13. Bxb8 Qxb8 14. O-O Ne7 15. Qe1 Nxe5 16. Qh4 Nc4 17. Rae1 Qa7+ 18. Kh1 {[%emt 1:04:31]} O-O {[%emt 0:48:43]} 19. Bd3 {[%emt 0:04:49]} Nxb2 20. Ne4 Nxd3 21. cxd3 Nf5 22. Nf6+ Bxf6 23. Qxf6 Bb7 24. Ng5 Qc5 25. Ne4 Bxe4 26. dxe4 Ne3 27. Qf2 1-0

[Event "9th Holuj-Radzikowska 2019"]
[Site "Wroclaw"]
[Date "2019.12.06"]
[Round "1.5"]
[White "Arabidze, Meri"]
[Black "Socko, Monika"]
[Result "1-0"]
[ECO "E17"]
[WhiteElo "2435"]
[BlackElo "2407"]
[Annotator "RC"]
[PlyCount "102"]
[EventDate "2019.12.06"]
[EventType "team-tourn"]
[EventCountry "POL"]
[SourceTitle "playchess.com"]
[Source "ChessBase"]
[SourceQuality "1"]
[WhiteTeam "Team World"]
[BlackTeam "Team Poland"]
[TimeControl "40/5400+30:1800+30"]

1. d4 {[%emt 0:00:00]} Nf6 {[%emt 0:00:00]} 2. c4 {[%emt 0:00:00]} e6 {[%emt 0:00:00]} 3. Nf3 {[%emt 0:00:00]} b6 {[%emt 0:00:00]} 4. g3 {[%emt 0:00:05]} Bb7 {[%emt 0:00:00]} 5. Bg2 {[%emt 0:00:16]} Be7 {[%emt 0:00:08]} 6. O-O {[%emt 0:00:14]} O-O {[%emt 0:00:06]} 7. Re1 {[%emt 0:00:13]} a5 {[%emt 0:00:57]} 8. Nc3 {[%emt 0:00:49]} Ne4 {[%emt 0:00:31]} 9. Qc2 {[%emt 0:00:14]} f5 {[%emt 0:10:48]} 10. Ne5 {[%emt 0:06:34]} d5 {[%emt 0:02:59]} 11. cxd5 {[%emt 0:09:56]} exd5 {[%emt 0:00:15]} 12. Be3 {[%emt 0:01:00]} Nd7 {[%emt 0:06:44]} 13. Nxe4 {[%emt 0:07:09]} Nxe5 {[%emt 0:12:05]} 14. Nc5 {[%emt 0:01:09]} bxc5 {[%emt 0:04:10]} 15. dxe5 {[%emt 0:00:06]} c4 {[%emt 0:02:21]} 16. b3 {[%emt 0:04:35]} Ba6 {[%emt 0:01:52]} 17. Rac1 {[%emt 0:12:55]} c6 {[%emt 0:06:53]} 18. bxc4 {[%emt 0:10:56]} Bxc4 {[%emt 0:02:03]} 19. Qa4 {[%emt 0:00:07]} Bb5 {[%emt 0:09:01]} 20. Qd4 {[%emt 0:05:29]} Bb4 {[%emt 0:03:16]} 21. Bd2 {[%emt 0:01:45]} Bxd2 {[%emt 0:03:08]} 22. Qxd2 {[%emt 0:00:06]} Kh8 {[%emt 0:00:44]} 23. e3 {[%emt 0:04:39]} Qe7 {[%emt 0:00:32]} 24. Qd4 {[%emt 0:01:29]} Rfe8 {[%emt 0:02:04]} 25. f4 {[%emt 0:07:51]} Bc4 {[%emt 0:02:02]} 26. Rc2 {[%emt 0:00:14]} Red8 {[%emt 0:10:09]} 27. Qc3 {[%emt 0:04:54]} Qb4 {[%emt 0:01:03]} 28. a3 {[%emt 0:00:32]} Qxc3 {[%emt 0:05:47]} 29. Rxc3 {[%emt 0:00:05]} Rab8 {[%emt 0:00:03]} 30. Bf1 {[%emt 0:03:19]} Rb2 {[%emt 0:00:11]} 31. Rec1 {[%emt 0:01:18]} Bxf1 {[%emt 0:00:34]} 32. Kxf1 {[%emt 0:04:59]} Rxh2 {[%emt 0:02:33]} 33. Rxc6 {[%emt 0:00:15]} Kg8 {[%emt 0:00:25]} 34. Rc8 {[%emt 0:02:27]} Rxc8 {[%emt 0:00:09]} 35. Rxc8+ {[%emt 0:00:07]} Kf7 {[%emt 0:00:02]} 36. Rc5 {[%emt 0:00:22]} Rd2 {[%emt 0:02:34]} 37. Rxa5 {[%emt 0:01:29]} d4 {[%emt 0:00:04]} 38. Ra7+ {[%emt 0:06:20]} Kf8 {[%emt 0:01:33]} 39. exd4 {[%emt 0:01:52]} Rxd4 {[%emt 0:00:09]} 40. a4 {[%emt 0:00:00]} g5 {[%emt 0:00:00]} 41. a5 {[%emt 0:10:56]} gxf4 {[%emt 0:07:32]} 42. gxf4 {[%emt 0:00:11]} Rxf4+ {[%emt 0:00:46]} 43. Kg2 {[%emt 0:00:13]} h5 {[%emt 0:10:42]} 44. a6 {[%emt 0:01:24]} Ra4 {[%emt 0:00:30]} 45. Ra8+ {[%emt 0:04:57]} Kg7 {[%emt 0:01:10]} 46. a7 {[%emt 0:02:48]} Ra2+ {[%emt 0:00:15]} 47. Kg3 {[%emt 0:00:19]} Ra3+ {[%emt 0:00:10]} 48. Kf4 {[%emt 0:03:39]} h4 {[%emt 0:00:46]} 49. e6 {[%emt 0:00:20]} h3 {[%emt 0:00:31]} 50. e7 {[%emt 0:01:44]} h2 {[%emt 0:00:03]} 51. Rh8 {[%emt 0:04:50]} Ra4+ {[%emt 0:03:39] Ke4} 1-0

[Event "9th Holuj-Radzikowska 2019"]
[Site "Wroclaw"]
[Date "2019.12.08"]
[Round "2"]
[White "Zawadzka, Jolanta"]
[Black "Bulmaga, Irina"]
[Result "1-0"]
[ECO "B90"]
[WhiteElo "2400"]
[BlackElo "2308"]
[Annotator "NA"]
[PlyCount "53"]
[EventDate "2019.12.06"]
[EventType "team-tourn"]
[EventCountry "POL"]
[SourceTitle "playchess.com"]
[Source "ChessBase"]
[SourceQuality "1"]
[TimeControl "40/5400+30:1800+30"]

1. e4 {[%emt 0:00:00]} c5 {[%emt 0:00:00]} 2. Nf3 {[%emt 0:00:00]} d6 {[%emt 0:00:00]} 3. d4 {[%emt 0:00:00]} cxd4 {[%emt 0:00:00]} 4. Nxd4 {[%emt 0:00:00]} Nf6 {[%emt 0:00:00]} 5. Nc3 {[%emt 0:00:00]} a6 {[%emt 0:00:03]} 6. Be3 {[%emt 0:00:08]} e5 {[%emt 0:00:08]} 7. Nf3 {[%emt 0:00:13]} Be7 {[%emt 0:00:32]} 8. Bc4 {[%emt 0:00:23]} O-O {[%emt 0:00:25]} 9. O-O {[%emt 0:00:09]} Be6 {[%emt 0:01:49]} 10. Bb3 {[%emt 0:01:27]} Nc6 {[%emt 0:03:09]} 11. Bg5 {[%emt 0:00:56]} Rc8 {[%emt 0:05:55]} 12. Bxf6 {[%emt 0:03:19]} Bxf6 {[%emt 0:00:08]} 13. Nd5 {[%emt 0:00:57]} Bxd5 {[%emt 0:07:26]} 14. Qxd5 {[%emt 0:04:33]} Qc7 {[%emt 0:03:00]} 15. c3 {[%emt 0:03:12]} Ne7 {[%emt 0:05:05]} 16. Qd3 {[%emt 0:02:58]} Rfd8 {[%emt 0:02:31]} 17. Rfd1 Qc5 {[%emt 0:08:09]} 18. Ne1 {[%emt 0:10:12]} Bg5 {[%emt 0:07:02]} 19. Qf3 {[%emt 0:03:04]} Rf8 {[%emt 0:01:38]} 20. Rd3 {[%emt 0:06:07]} Ng6 {[%emt 0:13:06]} 21. Qf5 {[%emt 0:10:41]} Bh4 {[%emt 0:03:59]} 22. Rh3 {[%emt 0:04:50]} Ne7 {[%emt 0:06:36]} 23. Qf3 {[%emt 0:00:14]} Bf6 {[%emt 0:02:46]} 24. Rd1 {[%emt 0:06:23]} Qb6 {[%emt 0:05:24]} 25. Rd3 {[%emt 0:10:50]} a5 {[%emt 0:05:30]} 26. Rxh7 {[%emt 0:11:24]} Rfd8 {[%emt 0:08:51]} 27. Rh8+ {[%emt 0:01:02]} 1-0

[Event "9th Holuj-Radzikowska 2019"]
[Site "Wroclaw"]
[Date "2019.12.08"]
[Round "2"]
[White "Bodnaruk, Anastasia"]
[Black "Antolak, Julia"]
[Result "0-1"]
[ECO "B84"]
[WhiteElo "2375"]
[BlackElo "2062"]
[Annotator "NA"]
[PlyCount "94"]
[EventDate "2019.12.06"]
[EventType "team-tourn"]
[EventCountry "POL"]
[SourceTitle "playchess.com"]
[Source "ChessBase"]
[SourceQuality "1"]
[TimeControl "40/5400+30:1800+30"]

1. e4 {[%emt 0:00:00]} c5 {[%emt 0:00:00]} 2. Nc3 {[%emt 0:00:00]} e6 {[%emt 0:00:00]} 3. Nf3 {[%emt 0:00:00]} d6 {[%emt 0:00:10]} 4. d4 {[%emt 0:00:03]} cxd4 {[%emt 0:00:06]} 5. Nxd4 {[%emt 0:00:03]} Nf6 {[%emt 0:00:06]} 6. Be2 {[%emt 0:00:59]} a6 {[%emt 0:00:25]} 7. f4 {[%emt 0:01:16]} Nc6 {[%emt 0:00:54]} 8. Be3 {[%emt 0:00:58]} Be7 {[%emt 0:01:33]} 9. O-O {[%emt 0:02:16]} O-O {[%emt 0:00:48]} 10. a4 {[%emt 0:02:50]} Qc7 {[%emt 0:01:37]} 11. Kh1 {[%emt 0:01:14]} Nxd4 {[%emt 0:01:21]} 12. Qxd4 {[%emt 0:01:00]} Bd7 {[%emt 0:01:33]} 13. e5 {[%emt 0:13:54]} Ne8 {[%emt 0:01:29]} 14. Qd2 {[%emt 0:20:28]} Bc6 {[%emt 0:08:24]} 15. Bd4 {[%emt 0:01:36]} dxe5 {[%emt 0:15:19]} 16. fxe5 {[%emt 0:00:16]} g6 {[%emt 0:00:51]} 17. a5 {[%emt 0:10:20]} Ng7 {[%emt 0:03:50]} 18. Qf4 {[%emt 0:00:49]} Rac8 {[%emt 0:06:37]} 19. Bd3 {[%emt 0:10:19]} f6 {[%emt 0:16:50]} 20. Qe3 {[%emt 0:07:43]} Nf5 {[%emt 0:04:35]} 21. Bxf5 {[%emt 0:00:52]} exf5 {[%emt 0:00:17]} 22. e6 {[%emt 0:04:09]} Bd6 {[%emt 0:05:30]} 23. Rfe1 {[%emt 0:01:27]} Bxh2 {[%emt 0:10:19]} 24. e7 {[%emt 0:02:17]} Rf7 {[%emt 0:00:36]} 25. Bb6 {[%emt 0:09:54]} Qg3 {[%emt 0:04:22]} 26. Qxg3 {[%emt 0:00:27]} Bxg3 {[%emt 0:00:01]} 27. Re6 {[%emt 0:00:55]} Re8 {[%emt 0:01:27]} 28. Bc5 {[%emt 0:05:06]} Be5 {[%emt 0:01:28]} 29. Re1 {[%emt 0:02:22]} Rg7 {[%emt 0:05:56]} 30. Kg1 {[%emt 0:00:20]} Kf7 {[%emt 0:00:45]} 31. R6xe5 {[%emt 0:00:12]} fxe5 {[%emt 0:00:06]} 32. Rxe5 {[%emt 0:00:02]} Kf6 {[%emt 0:01:05]} 33. Re1 {[%emt 0:01:50]} Rgxe7 {[%emt 0:00:21]} 34. Bxe7+ {[%emt 0:00:03]} Rxe7 {[%emt 0:00:05]} 35. Rd1 {[%emt 0:00:10]} Re5 {[%emt 0:01:30]} 36. b4 {[%emt 0:00:29]} f4 {[%emt 0:00:39]} 37. Rd4 {[%emt 0:01:16]} Kf5 {[%emt 0:01:20]} 38. Kf2 {[%emt 0:00:10]} g5 {[%emt 0:01:54]} 39. Ne2 {[%emt 0:00:40]} Bxg2 {[%emt 0:04:04]} 40. Nxf4 {[%emt 0:00:00]} Re4 {[%emt 0:00:00]} 41. Ne2 {[%emt 0:05:05]} Rxd4 {[%emt 0:03:21]} 42. Nxd4+ {[%emt 0:00:05]} Ke5 {[%emt 0:00:14]} 43. Nb3 {[%emt 0:05:29]} Bd5 {[%emt 0:00:44]} 44. Nd2 {[%emt 0:00:18]} Kd4 {[%emt 0:01:24]} 45. c4 {[%emt 0:00:09]} Bxc4 {[%emt 0:00:46]} 46. Nf3+ {[%emt 0:00:04]} Kc3 {[%emt 0:00:05]} 47. Nxg5 {[%emt 0:00:05]} h5 {[%emt 0:00:20]} 0-1

[Event "9th Holuj-Radzikowska 2019"]
[Site "Wroclaw"]
[Date "2019.12.08"]
[Round "2"]
[White "Houska, Jovanka"]
[Black "Cyfka, Karina"]
[Result "1/2-1/2"]
[ECO "A46"]
[WhiteElo "2345"]
[BlackElo "2266"]
[Annotator "NA"]
[PlyCount "62"]
[EventDate "2019.12.06"]
[EventType "team-tourn"]
[EventCountry "POL"]
[SourceTitle "playchess.com"]
[Source "ChessBase"]
[SourceQuality "1"]
[TimeControl "40/5400+30:1800+30"]

1. d4 Nf6 2. Nf3 e6 3. Bf4 b6 4. e3 Bb7 5. Bd3 Be7 6. h3 c5 7. c3 O-O 8. Nbd2 d6 9. O-O Nc6 10. Qe2 Re8 11. Bh2 Bf8 12. Rfd1 Qc7 13. e4 e5 14. dxc5 bxc5 15. a4 Ne7 16. Nc4 Ng6 17. Re1 Nh5 18. Qc2 Ngf4 19. Bxf4 Nxf4 20. Ne3 Qe7 21. Bc4 Qf6 22. h4 Qg6 23. Ng5 Ne6 24. Bd5 Nxg5 25. Bxb7 Rab8 26. Bd5 Nf3+ 27. Kf1 Nxh4 28. Rab1 Be7 29. Qe2 Qh6 30. Qg4 Ng6 31. g3 Nf8 1/2-1/2

[Event "9th Holuj-Radzikowska 2019"]
[Site "Wroclaw"]
[Date "2019.12.08"]
[Round "2"]
[White "Majdan, Joanna"]
[Black "Arabidze, Meri"]
[Result "1/2-1/2"]
[ECO "C55"]
[WhiteElo "2240"]
[BlackElo "2412"]
[Annotator "NA"]
[PlyCount "82"]
[EventDate "2019.12.06"]
[EventType "team-tourn"]
[EventCountry "POL"]
[SourceTitle "playchess.com"]
[Source "ChessBase"]
[SourceQuality "1"]
[TimeControl "40/5400+30:1800+30"]

1. e4 e5 2. Nf3 Nc6 3. Bc4 Nf6 4. d3 h6 5. c3 d6 6. a4 g6 7. b4 Bg7 8. Qb3 O-O 9. a5 a6 10. Nbd2 Nh5 11. O-O Nf4 12. Re1 Qf6 13. Qd1 Bg4 14. Ra2 Ne7 15. Kh1 Rad8 16. h3 Bh5 17. Kh2 g5 18. d4 g4 19. hxg4 Bxg4 20. d5 Qg6 21. Bf1 f5 22. c4 fxe4 23. Rxe4 Rf5 24. Be2 Rh5+ 25. Kg1 Bh3 26. g3 Bg2 27. Nh2 Bxe4 28. Nxe4 Nxe2+ 29. Qxe2 Nf5 30. Qg4 Qxg4 31. Nxg4 Rf8 32. b5 Nd4 33. b6 Nf3+ 34. Kg2 Ne1+ 35. Kg1 Nf3+ 36. Kg2 cxb6 37. axb6 Ne1+ 38. Kg1 Nf3+ 39. Kg2 Ne1+ 40. Kg1 Nf3+ 41. Kg2 Ne1+ 1/2-1/2

[Event "9th Holuj-Radzikowska 2019"]
[Site "Wroclaw"]
[Date "2019.12.08"]
[Round "2"]
[White "Badelka, Olga"]
[Black "Sliwicka, Alicja"]
[Result "1/2-1/2"]
[ECO "A58"]
[WhiteElo "2186"]
[BlackElo "2140"]
[Annotator "NA"]
[PlyCount "55"]
[EventDate "2019.12.06"]
[EventType "team-tourn"]
[EventCountry "POL"]
[SourceTitle "playchess.com"]
[Source "ChessBase"]
[SourceQuality "1"]
[TimeControl "40/5400+30:1800+30"]

1. d4 {[%emt 0:00:00]} Nf6 {[%emt 0:00:00]} 2. c4 {[%emt 0:00:00]} c5 {[%emt 0:00:00]} 3. d5 {[%emt 0:00:00]} b5 {[%emt 0:00:00]} 4. cxb5 {[%emt 0:00:08]} a6 {[%emt 0:00:00]} 5. bxa6 {[%emt 0:00:10]} g6 {[%emt 0:00:01]} 6. Nc3 {[%emt 0:00:11]} Bg7 {[%emt 0:00:08]} 7. a7 {[%emt 0:01:20]} Rxa7 {[%emt 0:00:10]} 8. e4 {[%emt 0:00:08]} O-O {[%emt 0:00:29]} 9. Nf3 {[%emt 0:01:21]} e6 {[%emt 0:02:17]} 10. Be2 {[%emt 0:01:41]} Ba6 {[%emt 0:08:26]} 11. Bxa6 {[%emt 0:14:06]} Nxa6 {[%emt 0:01:53]} 12. O-O {[%emt 0:00:19]} Qb8 {[%emt 0:09:11]} 13. Re1 {[%emt 0:10:22]} Qb7 {[%emt 0:04:43]} 14. d6 {[%emt 0:09:46]} Rc8 {[%emt 0:05:04]} 15. Rb1 {[%emt 0:06:42]} c4 {[%emt 0:11:44]} 16. e5 {[%emt 0:02:42]} Nd5 {[%emt 0:01:27]} 17. Nxd5 {[%emt 0:03:08]} Qxd5 {[%emt 0:03:31]} 18. Qxd5 {[%emt 0:17:59]} exd5 {[%emt 0:00:10]} 19. Be3 {[%emt 0:00:06]} Rb7 {[%emt 0:02:05]} 20. a3 {[%emt 0:01:03]} Nc5 {[%emt 0:09:24]} 21. Bxc5 {[%emt 0:01:55]} Rxc5 {[%emt 0:00:05]} 22. Nd4 {[%emt 0:00:35]} c3 {[%emt 0:03:33]} 23. b4 {[%emt 0:10:47]} Rc4 {[%emt 0:00:11]} 24. Nc2 {[%emt 0:00:04]} Bh6 {[%emt 0:01:31]} 25. Ne3 {[%emt 0:00:24]} Re4 {[%emt 0:03:46]} 26. Nc2 {[%emt 0:05:27]} Rc4 {[%emt 0:02:09]} 27. Ne3 {[%emt 0:01:39]} Re4 {[%emt 0:00:59]} 28. Nc2 {[%emt 0:00:05]} 1/2-1/2

[Event "9th Holuj-Radzikowska 2019"]
[Site "Wroclaw"]
[Date "2019.12.09"]
[Round "3"]
[White "Antolak, Julia"]
[Black "Badelka, Olga"]
[Result "1/2-1/2"]
[ECO "B47"]
[WhiteElo "2249"]
[BlackElo "2399"]
[Annotator "RC"]
[PlyCount "144"]
[EventDate "2019.12.06"]
[EventType "team-tourn"]
[EventCountry "POL"]
[SourceTitle "playchess.com"]
[Source "ChessBase"]
[SourceQuality "1"]
[TimeControl "40/5400+30:1800+30"]

1. e4 c5 2. Nf3 e6 3. d4 cxd4 4. Nxd4 Nc6 5. Nc3 Qc7 6. f4 a6 7. Nxc6 bxc6 8. e5 f5 9. Be3 Nh6 10. Be2 c5 11. O-O Bb7 12. Qe1 Be7 13. Qf2 O-O 14. Na4 Rac8 15. b3 Ng4 16. Bxg4 fxg4 17. Qe2 h5 18. Rad1 Qc6 19. Rd2 Rc7 20. c4 Rf7 21. Rfd1 Bf8 22. Nc3 Ba8 23. Rd3 Qb7 24. Bc1 Rf5 25. Re1 Qc8 26. Ne4 Bxe4 27. Qxe4 Be7 28. Red1 Kf7 29. Qe2 Qb7 30. Bd2 Qc6 31. Bc1 Ke8 32. h3 gxh3 33. Rxh3 g6 34. g4 Rf8 35. gxh5 gxh5 36. Qxh5+ Kd8 37. Qf3 Qxf3 38. Rxf3 Kc8 39. Kf2 Kb7 40. Rfd3 Kc6 41. Kf3 Rh8 42. Ke4 Rh2 43. R3d2 Rh7 44. Rg2 Rc8 45. Rdg1 Bd8 46. Rg8 Rb8 47. Be3 Rh3 48. R1g6 Rh4 49. Kd3 Rh5 50. Ke4 Bc7 51. Rxb8 Bxb8 52. Rg2 Bc7 53. a3 a5 54. Rb2 Rh3 55. b4 cxb4 56. axb4 axb4 57. Rxb4 Rh2 58. Ra4 Rh3 59. Ra6+ Kb7 60. Ra2 Kc6 61. Rg2 Rh5 62. Rf2 Rh4 63. Rf3 Rh5 64. f5 Rxf5 65. Rxf5 exf5+ 66. Kxf5 Ba5 67. Bd4 Be1 68. e6 dxe6+ 69. Kxe6 Bd2 70. c5 Bb4 71. Ke5 Bxc5 72. Bxc5 Kxc5 1/2-1/2

[Event "9th Holuj-Radzikowska 2019"]
[Site "Wroclaw"]
[Date "2019.12.10"]
[Round "4"]
[White "Arabidze, Meri"]
[Black "Zawadzka, Jolanta"]
[Result "1/2-1/2"]
[ECO "D40"]
[WhiteElo "2435"]
[BlackElo "2400"]
[Annotator "ChessBase"]
[PlyCount "85"]
[EventDate "2019.12.06"]
[EventType "team-tourn"]
[EventCountry "POL"]
[SourceTitle "playchess.com"]
[Source "ChessBase"]
[SourceQuality "1"]
[TimeControl "40/5400+30:1800+30"]

1. d4 d5 2. c4 e6 3. Nf3 Nf6 4. Nc3 c5 5. e3 a6 6. a3 Nc6 7. Bd3 dxc4 8. Bxc4 b5 9. Bd3 Bb7 10. O-O Qc7 11. Qe2 Rc8 12. h3 Be7 13. dxc5 Bxc5 14. b4 Ba7 15. Bb2 O-O 16. Rac1 Qe7 17. Ne4 Nxe4 18. Bxe4 f5 19. Bb1 e5 20. Ba2+ Kh8 21. Bd5 Bb8 22. e4 fxe4 23. Qxe4 Rf4 24. Qe3 Ba7 25. Qe2 e4 26. Bxc6 Rxc6 27. Rxc6 Bxc6 28. Ne5 Bb7 29. Ng4 Rf8 30. Ne3 Bb8 31. Rc1 Bc8 32. Rc5 h6 33. Qh5 Kh7 34. Rc6 Qe8 35. Qxe8 Rxe8 36. Kf1 Rd8 37. Ke2 Bb7 38. Re6 Rd7 39. Nf5 Bf4 40. Ne3 Kg8 41. Rg6 Kh7 42. Re6 Kg8 43. Rg6 1/2-1/2

[Event "9th Holuj-Radzikowska 2019"]
[Site "Wroclaw"]
[Date "2019.12.10"]
[Round "4"]
[White "Cyfka, Karina"]
[Black "Bulmaga, Irina"]
[Result "1/2-1/2"]
[ECO "A45"]
[WhiteElo "2410"]
[BlackElo "2434"]
[Annotator "ChessBase"]
[PlyCount "50"]
[EventDate "2019.12.06"]
[EventType "team-tourn"]
[EventCountry "POL"]
[SourceTitle "playchess.com"]
[Source "ChessBase"]
[SourceQuality "1"]
[TimeControl "40/5400+30:1800+30"]

1. d4 Nf6 2. Bf4 e6 3. e3 d5 4. Nf3 Be7 5. h3 O-O 6. Nbd2 b6 7. c3 Bb7 8. Bd3 Ne4 9. Qc2 f5 10. Ne5 Nd7 11. Ndf3 c5 12. O-O Nxe5 13. Nxe5 Nf6 14. Qe2 c4 15. Bc2 b5 16. g4 Ne4 17. f3 Nd6 18. Rf2 a5 19. Rg2 Rc8 20. Kh1 Rc7 21. Rag1 Bf6 22. Qe1 Bh4 23. Qd2 Bf6 24. Qe1 Bh4 25. Qd2 Bf6 1/2-1/2

[Event "9th Holuj-Radzikowska 2019"]
[Site "Wroclaw"]
[Date "2019.12.10"]
[Round "4"]
[White "Badelka, Olga"]
[Black "Majdan, Joanna"]
[Result "1-0"]
[ECO "A10"]
[WhiteElo "2399"]
[BlackElo "2336"]
[Annotator "ChessBase"]
[PlyCount "65"]
[EventDate "2019.12.06"]
[EventType "team-tourn"]
[EventCountry "POL"]
[SourceTitle "playchess.com"]
[Source "ChessBase"]
[SourceQuality "1"]
[TimeControl "40/5400+30:1800+30"]

1. c4 {[%emt 0:00:00]} g6 {[%emt 0:00:00]} 2. Nc3 {[%emt 0:00:16]} Bg7 {[%emt 0:00:00]} 3. d4 {[%emt 0:00:55]} c5 {[%emt 0:02:33]} 4. d5 {[%emt 0:00:17]} d6 {[%emt 0:00:05]} 5. e4 {[%emt 0:00:17]} Nf6 {[%emt 0:01:44]} 6. h3 {[%emt 0:01:45]} e6 {[%emt 0:02:45]} 7. Nf3 {[%emt 0:01:09]} O-O {[%emt 0:01:02]} 8. Bd3 {[%emt 0:05:02]} Na6 {[%emt 0:07:01]} 9. O-O {[%emt 0:00:44]} Nc7 {[%emt 0:00:22]} 10. a4 {[%emt 0:02:02]} Na6 {[%emt 0:05:38]} 11. Re1 {[%emt 0:02:25]} e5 {[%emt 0:05:00]} 12. Bf1 {[%emt 0:02:44]} h6 {[%emt 0:01:43]} 13. Nh2 {[%emt 0:12:59]} Ne8 {[%emt 0:07:08]} 14. f4 {[%emt 0:03:41]} exf4 {[%emt 0:14:20]} 15. Bxf4 {[%emt 0:00:06]} Nb8 {[%emt 0:00:03]} 16. e5 {[%emt 0:04:48]} dxe5 {[%emt 0:00:26]} 17. Bxe5 {[%emt 0:00:05]} Bxe5 {[%emt 0:01:37]} 18. Rxe5 {[%emt 0:00:04]} Nd7 {[%emt 0:00:31]} 19. Re1 {[%emt 0:00:36]} Nd6 {[%emt 0:00:25]} 20. Qd2 {[%emt 0:02:10]} h5 {[%emt 0:07:16]} 21. Nf3 {[%emt 0:04:32]} Nf6 {[%emt 0:05:05]} 22. Qf4 {[%emt 0:07:49]} Re8 {[%emt 0:05:48]} 23. Nb5 {[%emt 0:06:29]} Rxe1 {[%emt 0:05:13]} 24. Rxe1 {[%emt 0:00:18]} Nxb5 {[%emt 0:01:02]} 25. axb5 {[%emt 0:00:04]} a6 {[%emt 0:06:32]} 26. d6 {[%emt 0:09:37]} axb5 {[%emt 0:05:53]} 27. Re7 {[%emt 0:02:40]} Bf5 {[%emt 0:02:25]} 28. Ng5 {[%emt 0:00:05]} Ra1 {[%emt 0:03:24]} 29. Nxf7 {[%emt 0:00:43]} Qf8 {[%emt 0:01:10]} 30. Nh6+ {[%emt 0:01:21]} Kh8 {[%emt 0:00:03]} 31. Nxf5 {[%emt 0:06:44]} gxf5 {[%emt 0:00:10]} 32. Qe5 {[%emt 0:00:47]} Rd1 {[%emt 0:03:27]} 33. d7 {[%emt 0:00:41]} 1-0

[Event "9th Holuj-Radzikowska 2019"]
[Site "Wroclaw"]
[Date "2019.12.11"]
[Round "5"]
[White "Bulmaga, Irina"]
[Black "Antolak, Julia"]
[Result "1-0"]
[ECO "B84"]
[WhiteElo "2434"]
[BlackElo "2249"]
[Annotator "NA"]
[PlyCount "85"]
[EventDate "2019.12.06"]
[EventType "team-tourn"]
[EventCountry "POL"]
[SourceTitle "playchess.com"]
[Source "ChessBase"]
[SourceQuality "1"]
[TimeControl "40/5400+30:1800+30"]

1. e4 c5 2. Nf3 e6 3. d4 cxd4 4. Nxd4 Nf6 5. Nc3 d6 6. Be2 a6 7. O-O Be7 8. Be3 Nc6 9. f4 O-O 10. Kh1 Bd7 11. Qe1 Nxd4 12. Bxd4 b5 13. a3 Qb8 14. e5 dxe5 15. fxe5 Nd5 {[#]} 16. Ne4 $16 Bc6 17. Bd3 Kh8 18. Nf6 g6 19. Qh4 Bxf6 20. exf6 e5 21. Bc5 Nf4 22. Rxf4 exf4 23. Bxf8 Qxf8 24. Qxf4 Re8 25. h3 Re6 26. Rf1 Qd8 27. Qh6 Qg8 28. Qg5 Qd8 29. Qh6 Qg8 30. Kg1 Re5 31. Qf4 Qe8 32. Bxg6 Re2 33. Rf2 Rxf2 34. Kxf2 Bxg2 35. Qh6 Qg8 36. Bxh7 Qxh7 37. Qf8+ Qg8 38. Qxg8+ Kxg8 39. Kxg2 Kh7 40. b3 Kg6 41. c4 bxc4 42. bxc4 Kxf6 43. h4 1-0